Cogmind - Beta 15 *** ADVENTURER MODE // 2025.09.20 @ 00:21:29 Player: DeWulff Result: Smashed by cave-in Performance ------------- Evolutions (0) 0 Regions Visited (1) 200 Robots Destroyed (15) 75 Value Destroyed (456) 456 Prototype IDs (0) 0 Alien Tech Used (0) 0 Bonus (0) 0 TOTAL SCORE: 731 Bonus ------- None Cogmind --------- Core Integrity 0/250 Matter 270/300 Energy 160/160 System Corruption 13% Temperature Cool (80) Movement Walking (120) Location -10/Materials Parts ------- > --- POWER (1) -------- Light Nuclear Core > --- PROPULSION (2) --- Aluminum Leg Aluminum Leg > --- UTILITY (2) ------ (None) > --- WEAPON (2) ------- Particle Gun > --- INVENTORY (5) ---- Ion Engine Aluminum Leg Heat Sink Heat Sink Improved Heat Sink Peak State ------------ > --- POWER ------------ Light Nuclear Core > --- PROPULSION ------- Aluminum Leg Aluminum Leg > --- UTILITY ---------- Heat Sink Small Storage Unit > --- WEAPON ----------- Particle Gun > --- INVENTORY -------- Ion Engine Aluminum Leg Heat Sink Heat Sink Improved Heat Sink [Rating: 9] Favorites ----------- Power Ion Engine Engine Ion Engine Power Core Light Nuclear Core Propulsion Compact Wheel Leg Aluminum Leg Wheel Compact Wheel Utility Small Storage Unit Device Heat Sink Storage Small Storage Unit Weapon Small Laser Energy Gun Small Laser Build | -11 -10 ------- Run | Yrd Mat Slots Evolved . | . . Power . | . . Propulsion . | . . Utility . | . . Weapon . | . . Parts Attached 19 | 6 13 Power 3 | 1 2 Engine 2 | 1 1 Core 1 | . 1 Reactor . | . . Propulsion 6 | 2 4 Treads . | . . Leg 4 | . 4 Wheel 2 | 2 . Hover . | . . Flight . | . . Utility 3 | 1 2 Device 1 | . 1 Storage 2 | 1 1 Processor . | . . Hackware . | . . Protection . | . . Artifact . | . . Weapon 7 | 2 5 Energy Gun 7 | 2 5 Energy Cannon . | . . Ballistic Gun . | . . Ballistic Cannon . | . . Launcher . | . . Special Weapon . | . . Impact Weapon . | . . Slashing Weapon . | . . Piercing Weapon . | . . Special Melee Weapon . | . . Unidentified Prototypes . | . . Parts Lost 6 | . 6 Power 1 | . 1 Propulsion . | . . Utility 3 | . 3 Weapon 2 | . 2 Highest Loss Streak 6 | . 6 To Critical Strikes . | . . Average Backups 5 | 1 5 Power 1 | . 1 Propulsion 1 | . 1 Utility 1 | . 2 Weapon . | . . Tool/Special . | . . Unused Backups 10 | . 10 Power 1 | . 1 Propulsion 5 | . 5 Utility 4 | . 4 Weapon . | . . Tool/Special . | . . Average Slot Usage (%) 97 | . 97 Engine 13 | . 13 Leg 14 | . 14 Wheel 13 | . 13 Storage 26 | . 26 Energy Gun 27 | . 27 Peak Build Rating 9 | 6 9 Average Rating 6 | 4 7 On Entrance 3 | . 6 Naked Turns . | . . Heaviest Build 14 | 12 14 Greatest Support 32 | 32 32 Greatest Overweight (x) . | . . Average Overweight (x) . | . . Largest Inventory Capacity 8 | 8 8 Average Capacity 7 | 7 8 Most Carried 8 | 4 8 Average Carried 5 | 2 6 Final Capacity 8 | 8 5 Final Carried 5 | 3 5 Class Distribution -------------------- 93% | Mutant 6% | Scavenger-Mutant Dominant Class ---------------- Mutant | -10/Materials Resources | -11 -10 ----------- Run | Yrd Mat Matter Collected 342 | 213 129 Remotely . | . . Salvage Created 538 | . 538 Parts 31 | . 31 Haulers Intercepted . | . . Recyclers Shooed . | . . Parts Field Recycled . | . . Retrieved Matter . | . . Parts Self-Destructed . | . . Prevented . | . . Kills | -11 -10 ------- Run | Yrd Mat Combat Hostiles Destroyed 14 | . 14 Guns 14 | . 14 Classes Destroyed 3 | . 3 Watcher 1 | . 1 Swarmer 3 | . 3 Grunt 11 | . 11 Best Kill Streak 8 | . 8 Combat Bots Only 8 | . 8 Max Kills in Single Turn 1 | . 1 Gunslinging . | . . Exploded . | . . Melee . | . . Uniques/NPCs Destroyed . | . . Combat | -11 -10 -------- Run | Yrd Mat Hostile Shots Fired 83 | . 83 Missed 15 | . 15 Hits 68 | . 68 Projectile 68 | . 68 Critical Strikes 1 | . 1 Damage Taken 1164 | . 1164 Core 295 | . 295 Absorbed by Shields . | . . Ignored by Resistances 178 | . 178 Core Remaining (%) 100 | 100 . Volleys Fired 61 | . 61 Largest 2 | . 2 Hottest 80 | . 80 Shots Fired 112 | . 112 Gun 112 | . 112 Cannon . | . . Launcher . | . . Special . | . . Kinetic . | . . Thermal 84 | . 84 Explosive . | . . Electromagnetic 28 | . 28 Robot Hit Streak 26 | . 26 Robot Miss Streak 3 | . 3 Penetration Max . | . . Secondary Targets 2 | . 2 Max Gunslinging Chain 1 | . 1 Shots Hit Robots 76 | . 76 Core Hits 28 | . 28 Critical Kills . | . . Critical Parts Destroyed . | . . Critical Strikes 2 | . 2 Corrupt 2 | . 2 Melee Attacks . | . . Impact . | . . Slashing . | . . Piercing . | . . Sneak Attacks . | . . Combat Hostiles . | . . Follow-up Attacks . | . . Damage Inflicted 965 | . 965 Guns 902 | . 902 Cannons . | . . Explosions 63 | . 63 Melee . | . . Ramming . | . . Kinetic . | . . Thermal 683 | . 683 Explosive . | . . Electromagnetic 282 | . 282 Impact . | . . Slashing . | . . Piercing . | . . Highest Corruption 10 | . 10 Average Corruption 10 | . 10 Corruption Purged . | . . Corruption Blocked . | . . Effects 2 | . 2 Message Errors 1 | . 1 Weapon Failures 1 | . 1 Overload Shots . | . . Overflow Damage . | . . Projectiles . | . . Explosions . | . . Melee . | . . Knockbacks . | . . Impact . | . . Kinetic . | . . Secondary . | . . Self-Inflicted Damage 22 | . 22 Shots 1 | . 1 Rammed . | . . Targets Rammed . | . . Kicked . | . . Crushed . | . . Highest Temperature 314 | . 314 Average Temperature 110 | . 110 Received Heat Transfer 366 | . 366 Siege Activations . | . . Martial Activations . | . . Shielding Activations . | . . Robots Disrupted . | . . Combat Hostiles . | . . Robots Corrupted . | . . Combat Hostiles . | . . Parts Fried 1 | . 1 Impact Corruptions . | . . Robots Melted . | . . Combat Hostiles . | . . Parts Melted 5 | . 5 Heat Transferred 1450 | . 1450 Parts Sabotaged . | . . Parts Stolen . | . . Parts Stripped . | . . Power Chain Reactions 1 | . 1 Alert | -11 -10 ------- Run | Yrd Mat Maximum Alert Level 1 | . 1 Low Security (%) 84 | 100 83 Level 1 15 | . 16 Level 2 . | . . Level 3 . | . . Level 4 . | . . Level 5 . | . . High Security . | . . Max Security . | . . Peak Influence 238 | . 238 Initial . | . . Average 131 | . 144 Influence Increases 446 | . 446 Destroy 0b10 Robot/C 280 | . 280 Destroy 0b10 Robot/NC 5 | . 5 Destroy Leader 52 | . 52 Successful Hack 6 | . 6 Disable Machine 9 | . 9 Destroy Structure 4 | . 4 Lose Combat Pursuer 90 | . 90 Influence Decreases 283 | . 283 Time Decay 223 | . 223 Lost Part 60 | . 60 Squads Dispatched 2 | . 2 Investigation 2 | . 2 Extermination . | . . Reinforcement . | . . Assault . | . . Garrison . | . . Intercept . | . . Searches Triggered . | . . Construction Impeded . | . . Haulers Reinforced . | . . Active Scanning Responses . | . . Cargo Convoy Interrupts . | . . Stealth | -11 -10 --------- Run | Yrd Mat Distress Signals 2 | . 2 Communications Jammed . | . . Distress Signals . | . . Times Spotted 26 | . 26 Peak Tracking Total 7 | . 7 Tactical Retreats 4 | . 4 Traps | -11 -10 ------- Run | Yrd Mat Traps Triggered . | . . Indirectly . | . . Trap Hack Attempts . | . . Triggered . | . . Disarmed . | . . Reprogrammed . | . . Reused . | . . Traps Extracted . | . . Installed . | . . Triggered . | . . Machines | -11 -10 ---------- Run | Yrd Mat Machines Disabled 1 | . 1 Max in Single Turn 1 | . 1 Machines Repaired . | . . Machines Dismantled . | . . Machines Sabotaged . | . . Overloaded Fab Kills . | . . Hacking | -11 -10 --------- Run | Yrd Mat Machines Accessed 5 | . 5 Terminals 3 | . 3 Fabricators . | . . Repair Stations . | . . Recycling Units 2 | . 2 Scanalyzers . | . . Garrison Access . | . . Total Hacks 23 | . 23 Successful 21 | . 21 Failed 2 | . 2 Catastrophic . | . . Database Lockouts . | . . Manual 2 | . 2 Terminals 7 | . 7 Fabricators . | . . Repair Stations . | . . Recycling Units 16 | . 16 Scanalyzers . | . . Garrison Access . | . . Terminal Hacks 6 | . 6 Record 1 | . 1 Alert Level 1 | . 1 Locate Traps 2 | . 2 Registered Components 1 | . 1 Zone Layout 1 | . 1 Fabricator Hacks . | . . Repair Station Hacks . | . . Recycling Unit Hacks 15 | . 15 Recycle Component 7 | . 7 Process 3 | . 3 Report Inventory 3 | . 3 Retrieve Matter 2 | . 2 Scanalyzer . | . . Garrison Access Hacks . | . . Unauthorized Hacks . | . . Terminals . | . . Fabricators . | . . Repair Stations . | . . Recycling Units . | . . Scanalyzers . | . . Garrison Access . | . . Data Cores Recovered . | . . Used . | . . Hacking Detections 4 | . 4 Full Trace Events 2 | . 2 Feedback Events . | . . Feedback Blocked . | . . Robot Schematics Acquired . | . . Robots Built . | . . Authchips . | . . Time . | . . Total Robot Build Rating . | . . Part Schematics Acquired . | . . Parts Built . | . . Authchips . | . . Time . | . . Total Part Build Rating . | . . Parts Repaired . | . . Time . | . . Parts Recycled 7 | . 7 Recycled Matter 96 | . 96 Retrieved Matter 93 | . 93 Retrieved Components . | . . Parts Scanalyzed . | . . Part Schematics Acquired . | . . Parts Damaged . | . . Bothacking | -11 -10 ------------ Run | Yrd Mat Used RIF Installer . | . . Robots Hacked . | . . Non-combat . | . . Combat . | . . Robot Hacks Applied . | . . Relay Couplers Released . | . . Fabnet Peak Effective % . | . . Robots Rewired . | . . Allies Hacked . | . . Hacks Repelled . | . . Allies | -11 -10 -------- Run | Yrd Mat Total Allies . | . . Largest Group . | . . Highest-Rated Group . | . . Highest-Rated Ally . | . . Total Orders . | . . Ally Attacks . | . . Total Damage . | . . Kills . | . . Allies Corrupted . | . . Allies Melted . | . . Intel | -11 -10 ------- Run | Yrd Mat Active Infowar (turns) . | . . Robot Analysis Total . | . . Derelict Logs Recovered . | . . Drone Launches . | . . Drone Recoveries . | . . Exploration | -11 -10 ------------- Run | Yrd Mat Turns Passed 555 | 53 502 Spaces Moved 298 | 41 257 Core 2 | 2 . Treads . | . . Legs 100 | . 100 Wheels 196 | 39 157 Hover . | . . Flight . | . . Fastest Speed 50 | 50 100 Average Speed 106 | 97 107 Slowest Speed 120 | 100 120 Overloaded Moves . | . . Propulsion Burnouts . | . . Robots Hopped . | . . Potential Cave-ins . | . . Cave-ins Triggered 2 | . 2 Exploration Rate (%) 21 | 4 38 Regions Visited 1 Branch Regions . Pre-discovered Areas . | . . Known Exits Taken . | . . Unknown Exits Taken 1 | 1 . Scrap Searched . | . . Spaces Dug . | . . Terrain Destroyed 6 | . 6 Melee . | . . Projectile . | . . AOE 6 | . 6 Terrain Rammed . | . . Walls Destroyed . | . . Machines Disabled . | . . Actions | -11 -10 --------- Run | Yrd Mat Total 424 | 52 372 Wait 10 | . 10 Move 297 | 40 257 Hop . | . . Pick Up 28 | 6 22 Fast Attach 3 | 3 . Attach 7 | 3 4 Detach . | . . Swap 9 | . 9 Drop 9 | . 9 Fire 61 | . 61 Melee . | . . Ram . | . . Kick . | . . Crush . | . . Escape Stasis . | . . Rewire . | . . Trap . | . . Miscellaneous . | . . Route ------- -11/Scrapyard -10/Materials (discovered 2 exits: [*Mat] / [*Sub]) History --------- Turn | Location | Event 14 | -11/Scrapyard | Discovered new exit (range 16) 54 | -11/Scrapyard | Entered Materials 199 | -10/Materials | Destroyed 8 combat bots 384 | -10/Materials | Discovered new exit (range 13) 431 | -10/Materials | Discovered new exit (range 9) 497 | -10/Materials | Core integrity fell below 50% 535 | -10/Materials | Crushed by falling debris 535 | -10/Materials | Core integrity fell below 20% 535 | -10/Materials | System corruption reached 10% 557 | -10/Materials | Crushed by falling debris 557 | -10/Materials | Smashed by cave-in Last Messages --------------- K-01 Serf collects debris. The unstable cave ceiling collapses. Crushed by falling debris. [Achievement: Unlikely Earthworm] Sml. Laser destroyed. System corrupted by crushing effect (+1). Ion Engine destroyed. System corrupted by crushing effect (+2). Sml. Battery destroyed. System corrupted by crushing effect (+3). EM Pulse Gun destroyed. System corrupted by crushing effect (+4). System corrupted: Particle Gun failed to cycle. 0D%YB&U=Z,AQAISKYYK/VSSQ 0 >B3HEU0HAJ The unstable cave ceiling collapses. Crushed by falling debris. Heat Sink destroyed. System corrupted by crushing effect (+2). Sml. Storage Unit destroyed. System corrupted by crushing effect (+1). Map ----- +----------------------------------------------------+ | ??????????????# !!! ################## + """ "" | | ??????????????# !!! # # """ "" | | ??????????????# !! # [ # | | ??????????????# #%[ # | | ??????????????# =+ ############## # | | ??????????????# =%*# % #??# # # | | ??????????????######## #??# # ######## | | ###################### #??# """ """ # ## # | | #??# """ """ # ## ? | | *#??# """ """ + ## # | | =%[=%#????????????? #??????? | | #######+######+######+######??????????? #??????? | | ##??? ??# # #??????????? [??????? | | #??# """ ## # #??????????? [??????? | | #??# """ ## # | #???????????^^ ^^?????? | | #??# """ ## # ""T"" #??????????? ??????? | | #??#| ## # % """"" #??????????? ???????? | | #??# ## # #?????????????????????? | | #??######### ###########?????????????????????? | | ################## #?????????????????????????? | | ^ ^ #?????????????????????????? | | [%[= ##????????????????????????? | | !%^ "#######??????????????????? | | " """"" " """" =%= ???????????? | | """"""""" """"""""" %####### ??????????????? | | "" """ """ """ ##@#??????????????????????? | | ####??????????????????????? | | #?????????????????????????? | | ################### #?????????????????????????? | | ??????????????????# < #?????????????????????????? | | ??????????????????# #?????????????????????????? | | ??????????????????######????!????????????????????? | | ?????????????????????????????????????????????????? | | ?????????????????????????????????????????????????? | | ?????????????????????????????????????????????????? | | ?????????????????????????????????????????????????? | | ?????????????????????????????????????????????????? | | | | | | | | | | | | | | | | | | | | | | | | | | | +----------------------------------------------------+ Best States ------------- Heat Dissipation 35 Energy Generation 14 Energy Capacity 350 Matter Stores 300 Matter Capacity 300 Sight Range 16 Terrain Scan Density 10 Resistance: KI 20 Resistance: TH 20 Resistance: EX 20 Resistance: EM 20 Resistance: I 20 Resistance: S 20 Resistance: P 20 Evasion (%) 55 Offensive Hacking 10 Item Schematics ----------------- None Robot Schematics ------------------ None Fabricated ------------ Nothing Repaired ---------- Nothing Alien Tech Used ----------------- None Achievements -------------- Unlikely Earthworm Challenges ------------ None Game ------ Seed ShadeVoltaicTendrils Manual? 0 Play Time 00:18:42 Cumulative 9.4 hours Start 2025.09.20 @ 00:01:16 End 2025.09.20 @ 00:21:29 Sessions 1 Manual Loads 0 Difficulty Adventurer Special Mode None Game No. 5 Rogue 2 Adventurer 3 Explorer 0 Win Type - Total 0 Types 0/0/0/0/0/0/0/0/0/0 Lore% 8 Gallery% 13 Achievement% 14 Wizard Run 0 Options --------- Layout 1 ASCII 0 Keyboard 0 Movement Numpad Keybinds 0 Fullscreen 1 Font 24/Smallcaps Map View 50x35 Zoom Use 0% Tactical HUD 0 Map Filters NONE Filters NONE Steam 1 RUN: d0d5462e-aed6-41d1-ab6e-e2df227b1d3f